[Event "Early-Titled-Tuesday-Blitz-February-20-2024"]
[Site "Chess.com"]
[Date "2024.02.20"]
[Round "3"]
[White "ContrVersia"]
[Black "Ordekalog"]
[Result "0-1"]
[WhiteElo "2831"]
[BlackElo "2599"]
[TimeControl "180+1"]
[EndTime "8:28:58 PST"]
[Termination "Ordekalog won on time"]

1. Nf3 {[%clk 0:03:00.9]} 1... d5 {[%clk 0:02:59.1]} 2. c4 {[%clk 0:03:00.8]}
2... e6 {[%clk 0:02:58.7]} 3. g3 {[%clk 0:03:00.7]} 3... c5 {[%clk 0:02:57.9]}
4. Bg2 {[%clk 0:03:00.6]} 4... Nc6 {[%clk 0:02:57.5]} 5. O-O {[%clk 0:03:00.6]}
5... Nf6 {[%clk 0:02:57.6]} 6. cxd5 {[%clk 0:02:57.8]} 6... exd5 {[%clk
0:02:57.4]} 7. d4 {[%clk 0:02:57.7]} 7... Be7 {[%clk 0:02:57.4]} 8. Nc3 {[%clk
0:02:57.5]} 8... O-O {[%clk 0:02:57.5]} 9. Bg5 {[%clk 0:02:56.9]} 9... cxd4
{[%clk 0:02:57.3]} 10. Nxd4 {[%clk 0:02:57.2]} 10... h6 {[%clk 0:02:57.4]} 11.
Be3 {[%clk 0:02:57.1]} 11... Re8 {[%clk 0:02:56.4]} 12. Qa4 {[%clk 0:02:56.5]}
12... Bd7 {[%clk 0:02:55.7]} 13. Rfd1 {[%clk 0:02:56.2]} 13... Bc5 {[%clk
0:02:49.6]} 14. Qc2 {[%clk 0:02:39.8]} 14... Qb6 {[%clk 0:02:44.8]} 15. Qd2
{[%clk 0:02:05.2]} 15... Rxe3 {[%clk 0:02:06.1]} 16. fxe3 {[%clk 0:02:02]} 16...
Ne7 {[%clk 0:01:49.2]} 17. a3 {[%clk 0:01:58.5]} 17... Re8 {[%clk 0:01:42.6]}
18. Rac1 {[%clk 0:01:52.9]} 18... a6 {[%clk 0:01:36.1]} 19. Rf1 {[%clk
0:01:46.9]} 19... a5 {[%clk 0:01:14.2]} 20. Kh1 {[%clk 0:01:25.4]} 20... h5
{[%clk 0:00:58.9]} 21. Rf4 {[%clk 0:01:21.8]} 21... Ng6 {[%clk 0:00:52.2]} 22.
Rxf6 {[%clk 0:00:53.6]} 22... Qxf6 {[%clk 0:00:53.1]} 23. Nxd5 {[%clk
0:00:53.7]} 23... Qd6 {[%clk 0:00:53.8]} 24. b4 {[%clk 0:00:52.6]} 24... axb4
{[%clk 0:00:53.5]} 25. axb4 {[%clk 0:00:52.8]} 25... Ba7 {[%clk 0:00:52.9]} 26.
Ra1 {[%clk 0:00:44.6]} 26... Bb8 {[%clk 0:00:50.1]} 27. Nf4 {[%clk 0:00:38.9]}
27... h4 {[%clk 0:00:45.8]} 28. Rd1 {[%clk 0:00:35.6]} 28... hxg3 {[%clk
0:00:27.8]} 29. hxg3 {[%clk 0:00:36.5]} 29... Ne5 {[%clk 0:00:28.2]} 30. Kg1
{[%clk 0:00:20.2]} 30... Nc4 {[%clk 0:00:27.7]} 31. Qc3 {[%clk 0:00:13.5]} 31...
Nxe3 {[%clk 0:00:27.2]} 32. Rd3 {[%clk 0:00:14]} 32... Ba7 {[%clk 0:00:27.4]}
33. Kf2 {[%clk 0:00:07]} 33... Nf5 {[%clk 0:00:27.2]} 34. e3 {[%clk 0:00:06.7]}
34... Nxe3 {[%clk 0:00:27]} 35. Nfe2 {[%clk 0:00:04.5]} 35... Nxg2 {[%clk
0:00:17.5]} 36. Kxg2 {[%clk 0:00:04.2]} 36... Qd5+ {[%clk 0:00:16]} 37. Kf2
{[%clk 0:00:03.8]} 37... Bb5 {[%clk 0:00:12.2]} 38. Re3 {[%clk 0:00:03.1]} 38...
Rxe3 {[%clk 0:00:10.6]} 39. Kxe3 {[%clk 0:00:02.1]} 39... Bxe2 {[%clk
0:00:08.5]} 40. Qc8+ {[%clk 0:00:02.2]} 40... Kh7 {[%clk 0:00:08.5]} 41. Qh3+
{[%clk 0:00:03.1]} 41... Qh5 {[%clk 0:00:07.7]} 0-1

[Event "Early-Titled-Tuesday-Blitz-February-20-2024"]
[Site "Chess.com"]
[Date "2024.02.20"]
[Round "3"]
[White "Sam_ChessMood"]
[Black "lamomiajunior"]
[Result "1-0"]
[WhiteElo "2939"]
[BlackElo "2726"]
[TimeControl "180+1"]
[EndTime "8:28:59 PST"]
[Termination "Sam_ChessMood won by checkmate"]

1. d4 {[%clk 0:03:00]} 1... Nf6 {[%clk 0:03:00.6]} 2. c4 {[%clk 0:03:00.3]} 2...
e6 {[%clk 0:03:01.3]} 3. Nf3 {[%clk 0:03:00.7]} 3... d5 {[%clk 0:03:01.4]} 4.
Nc3 {[%clk 0:03:01]} 4... Bb4 {[%clk 0:03:01.2]} 5. e3 {[%clk 0:02:56.8]} 5...
O-O {[%clk 0:03:00.1]} 6. Bd2 {[%clk 0:02:57.1]} 6... b6 {[%clk 0:02:59.9]} 7.
cxd5 {[%clk 0:02:53]} 7... exd5 {[%clk 0:03:00.8]} 8. Rc1 {[%clk 0:02:53.3]}
8... Bb7 {[%clk 0:02:59.8]} 9. Bd3 {[%clk 0:02:50.2]} 9... Re8 {[%clk
0:02:56.7]} 10. Ne5 {[%clk 0:02:47.1]} 10... Bf8 {[%clk 0:02:55.3]} 11. O-O
{[%clk 0:02:46.1]} 11... c5 {[%clk 0:02:55.3]} 12. f4 {[%clk 0:02:44.8]} 12...
Nc6 {[%clk 0:02:55.4]} 13. Ne2 {[%clk 0:02:24.9]} 13... Ne4 {[%clk 0:02:39.4]}
14. Ng3 {[%clk 0:02:19]} 14... Nxg3 {[%clk 0:01:57.6]} 15. hxg3 {[%clk
0:02:09.4]} 15... g6 {[%clk 0:01:54.1]} 16. g4 {[%clk 0:01:43.5]} 16... Rc8
{[%clk 0:01:50.6]} 17. g5 {[%clk 0:01:29]} 17... cxd4 {[%clk 0:01:46.1]} 18.
exd4 {[%clk 0:01:28.2]} 18... Nxd4 {[%clk 0:01:42]} 19. Rxc8 {[%clk 0:01:27.9]}
19... Qxc8 {[%clk 0:01:42]} 20. Bc3 {[%clk 0:01:25.8]} 20... Bc5 {[%clk
0:01:42]} 21. Kh2 {[%clk 0:01:13.8]} 21... Nf5 {[%clk 0:01:38.3]} 22. Ng4 {[%clk
0:01:05.2]} 22... Ne3 {[%clk 0:00:45.6]} 23. Nf6+ {[%clk 0:01:02.8]} 23... Kf8
{[%clk 0:00:45.7]} 24. Nxh7+ {[%clk 0:00:43.3]} 24... Kg8 {[%clk 0:00:43.3]} 25.
Nf6+ {[%clk 0:00:31.5]} 25... Kf8 {[%clk 0:00:43.9]} 26. Nh7+ {[%clk 0:00:12.7]}
26... Ke7 {[%clk 0:00:19.8]} 27. Re1 {[%clk 0:00:12.7]} 27... Rh8 {[%clk
0:00:19.6]} 28. Bf6+ {[%clk 0:00:07.3]} 28... Kd6 {[%clk 0:00:18.8]} 29. Be5+
{[%clk 0:00:05.9]} 29... Kd7 {[%clk 0:00:14.4]} 30. Qa4+ {[%clk 0:00:06]} 30...
Bc6 {[%clk 0:00:15.1]} 31. Qxa7+ {[%clk 0:00:06.1]} 31... Ke6 {[%clk 0:00:14.8]}
32. Kg3 {[%clk 0:00:03]} 32... Rxh7 {[%clk 0:00:13.8]} 33. b4 {[%clk 0:00:03.7]}
33... Nf5+ {[%clk 0:00:02.9]} 34. Bxf5+ {[%clk 0:00:03.6]} 34... Kxf5 {[%clk
0:00:03.8]} 35. bxc5 {[%clk 0:00:03.3]} 35... bxc5 {[%clk 0:00:01.7]} 36. Qxc5
{[%clk 0:00:03.4]} 36... Qd7 {[%clk 0:00:01.6]} 37. Qd4 {[%clk 0:00:03.3]} 37...
Qe6 {[%clk 0:00:01.6]} 38. Re3 {[%clk 0:00:02.5]} 38... f6 {[%clk 0:00:02.1]}
39. Bxf6 {[%clk 0:00:02.8]} 39... Qd7 {[%clk 0:00:02.5]} 40. Re5# {[%clk
0:00:02.9]} 1-0

[Event "Early-Titled-Tuesday-Blitz-February-20-2024"]
[Site "Chess.com"]
[Date "2024.02.20"]
[Round "3"]
[White "ACollins05"]
[Black "Nemegejas"]
[Result "0-1"]
[WhiteElo "2568"]
[BlackElo "2797"]
[TimeControl "180+1"]
[EndTime "8:29:03 PST"]
[Termination "Nemegejas won by resignation"]

1. d4 {[%clk 0:03:00.9]} 1... g6 {[%clk 0:02:57.2]} 2. c4 {[%clk 0:03:00.1]}
2... Bg7 {[%clk 0:02:57.7]} 3. Nf3 {[%clk 0:03:00.2]} 3... d6 {[%clk 0:02:58.1]}
4. Nc3 {[%clk 0:02:59.1]} 4... Nc6 {[%clk 0:02:58.2]} 5. e4 {[%clk 0:02:56.9]}
5... e5 {[%clk 0:02:58]} 6. Be3 {[%clk 0:02:56.3]} 6... exd4 {[%clk 0:02:58]} 7.
Nxd4 {[%clk 0:02:57.2]} 7... Nf6 {[%clk 0:02:57.9]} 8. Be2 {[%clk 0:02:56.8]}
8... O-O {[%clk 0:02:57.5]} 9. O-O {[%clk 0:02:56.6]} 9... Re8 {[%clk
0:02:57.3]} 10. f3 {[%clk 0:02:55.1]} 10... Ne5 {[%clk 0:02:55.3]} 11. Qd2
{[%clk 0:02:51.5]} 11... a6 {[%clk 0:02:55.1]} 12. Rfd1 {[%clk 0:02:50.6]} 12...
Bd7 {[%clk 0:02:54.9]} 13. Rac1 {[%clk 0:02:49.5]} 13... Rb8 {[%clk 0:02:55.1]}
14. Nd5 {[%clk 0:02:48.6]} 14... Nxd5 {[%clk 0:02:12.2]} 15. cxd5 {[%clk
0:02:47.8]} 15... c5 {[%clk 0:01:30.6]} 16. dxc6 {[%clk 0:02:44.2]} 16... bxc6
{[%clk 0:01:31.5]} 17. Nb3 {[%clk 0:02:38.7]} 17... d5 {[%clk 0:01:15.9]} 18.
exd5 {[%clk 0:02:27.8]} 18... cxd5 {[%clk 0:01:16.8]} 19. Qxd5 {[%clk 0:02:27]}
19... Qh4 {[%clk 0:01:02.8]} 20. Bf2 {[%clk 0:02:19.7]} 20... Qg5 {[%clk
0:01:02.2]} 21. h4 {[%clk 0:02:10.2]} 21... Qh5 {[%clk 0:00:55.9]} 22. g4 {[%clk
0:01:55.8]} 22... Qh6 {[%clk 0:00:55.9]} 23. Qd2 {[%clk 0:01:44.8]} 23... Bb5
{[%clk 0:00:44.3]} 24. Qxh6 {[%clk 0:01:12.3]} 24... Bxh6 {[%clk 0:00:45.2]} 25.
Bxb5 {[%clk 0:01:12.2]} 25... axb5 {[%clk 0:00:46.1]} 26. g5 {[%clk 0:01:07.9]}
26... Bg7 {[%clk 0:00:46.3]} 27. Kg2 {[%clk 0:00:59.1]} 27... Nc4 {[%clk
0:00:46.7]} 28. Bd4 {[%clk 0:00:53.7]} 28... Bxd4 {[%clk 0:00:47.1]} 29. Nxd4
{[%clk 0:00:48.4]} 29... Ne3+ {[%clk 0:00:46.3]} 30. Kf2 {[%clk 0:00:48.5]}
30... Nxd1+ {[%clk 0:00:47.2]} 31. Rxd1 {[%clk 0:00:48.8]} 31... Rbd8 {[%clk
0:00:45.2]} 32. Rd2 {[%clk 0:00:48.8]} 32... h6 {[%clk 0:00:36.5]} 33. Nb3
{[%clk 0:00:41.6]} 33... hxg5 {[%clk 0:00:35.8]} 34. hxg5 {[%clk 0:00:40.8]}
34... Rxd2+ {[%clk 0:00:31.8]} 35. Nxd2 {[%clk 0:00:41.7]} 35... b4 {[%clk
0:00:32.7]} 36. Nb1 {[%clk 0:00:17.3]} 36... Rc8 {[%clk 0:00:30.3]} 37. a4
{[%clk 0:00:11.4]} 37... Rc2+ {[%clk 0:00:28.2]} 38. Ke3 {[%clk 0:00:12]} 38...
Rxb2 {[%clk 0:00:27.6]} 39. Nd2 {[%clk 0:00:12.7]} 39... Ra2 {[%clk 0:00:28.2]}
40. Kd3 {[%clk 0:00:12.2]} 40... Rxa4 {[%clk 0:00:28.2]} 41. Kc4 {[%clk
0:00:12.9]} 41... Ra2 {[%clk 0:00:17.1]} 42. Ne4 {[%clk 0:00:11.7]} 42... Ra3
{[%clk 0:00:17.6]} 43. Kxb4 {[%clk 0:00:09.3]} 43... Rxf3 {[%clk 0:00:17.2]} 44.
Kc5 {[%clk 0:00:09.8]} 44... Kf8 {[%clk 0:00:10.1]} 45. Kd5 {[%clk 0:00:10.2]}
45... Ke7 {[%clk 0:00:08.1]} 46. Ke5 {[%clk 0:00:10.4]} 46... Rf5+ {[%clk
0:00:08.3]} 47. Kd4 {[%clk 0:00:10.9]} 47... Ke6 {[%clk 0:00:08.9]} 48. Nc5+
{[%clk 0:00:10.7]} 48... Rxc5 {[%clk 0:00:09]} 49. Kxc5 {[%clk 0:00:11]} 49...
Kf5 {[%clk 0:00:09.6]} 50. Kd4 {[%clk 0:00:11.9]} 50... Kxg5 {[%clk 0:00:10.2]}
0-1

[Event "Early-Titled-Tuesday-Blitz-February-20-2024"]
[Site "Chess.com"]
[Date "2024.02.20"]
[Round "3"]
[White "tetrix83"]
[Black "K_A_S_T_O_R"]
[Result "0-1"]
[WhiteElo "2505"]
[BlackElo "2850"]
[TimeControl "180+1"]
[EndTime "8:29:03 PST"]
[Termination "K_A_S_T_O_R won on time"]

1. e4 {[%clk 0:03:00.9]} 1... c5 {[%clk 0:03:00.3]} 2. Nf3 {[%clk 0:02:52.1]}
2... d6 {[%clk 0:03:00.4]} 3. Bb5+ {[%clk 0:02:51.8]} 3... Nc6 {[%clk
0:03:00.3]} 4. O-O {[%clk 0:02:51.5]} 4... Bd7 {[%clk 0:03:00.6]} 5. Re1 {[%clk
0:02:50.6]} 5... Nf6 {[%clk 0:02:58.7]} 6. c3 {[%clk 0:02:49.5]} 6... a6 {[%clk
0:02:58.8]} 7. Bf1 {[%clk 0:02:50.1]} 7... Bg4 {[%clk 0:02:58.9]} 8. h3 {[%clk
0:02:47.6]} 8... Bxf3 {[%clk 0:02:58.6]} 9. Qxf3 {[%clk 0:02:48.5]} 9... g6
{[%clk 0:02:59.3]} 10. d3 {[%clk 0:02:48.7]} 10... Bg7 {[%clk 0:02:59.6]} 11.
Be3 {[%clk 0:02:49.3]} 11... Nd7 {[%clk 0:02:59.7]} 12. Nd2 {[%clk 0:02:49.2]}
12... O-O {[%clk 0:02:59.6]} 13. Qd1 {[%clk 0:02:47.8]} 13... b5 {[%clk
0:02:59.6]} 14. Nf3 {[%clk 0:02:45.6]} 14... b4 {[%clk 0:02:59.8]} 15. d4 {[%clk
0:02:46]} 15... bxc3 {[%clk 0:02:59.2]} 16. bxc3 {[%clk 0:02:46]} 16... Qa5
{[%clk 0:02:59.4]} 17. Qb3 {[%clk 0:02:34.4]} 17... cxd4 {[%clk 0:02:50.5]} 18.
cxd4 {[%clk 0:02:33.5]} 18... Rfb8 {[%clk 0:02:51]} 19. Qd3 {[%clk 0:02:22.6]}
19... Rc8 {[%clk 0:02:48.2]} 20. Rec1 {[%clk 0:02:12.6]} 20... h6 {[%clk
0:02:19.7]} 21. a3 {[%clk 0:01:50.5]} 21... Nf6 {[%clk 0:02:07.3]} 22. d5 {[%clk
0:01:42.8]} 22... Nd8 {[%clk 0:01:58.5]} 23. Rxc8 {[%clk 0:01:38]} 23... Rxc8
{[%clk 0:01:59.1]} 24. Qxa6 {[%clk 0:01:38.1]} 24... Qxa6 {[%clk 0:01:59.7]} 25.
Bxa6 {[%clk 0:01:37.7]} 25... Ra8 {[%clk 0:02:00.2]} 26. Bb5 {[%clk 0:01:27]}
26... Nxd5 {[%clk 0:01:58.8]} 27. Bd4 {[%clk 0:01:21.1]} 27... Bxd4 {[%clk
0:01:57]} 28. Nxd4 {[%clk 0:01:22]} 28... Nc3 {[%clk 0:01:57.2]} 29. Bd3 {[%clk
0:01:11.7]} 29... Nb7 {[%clk 0:01:44]} 30. Nb5 {[%clk 0:01:06.1]} 30... Na4
{[%clk 0:01:41.6]} 31. Bc4 {[%clk 0:00:54.1]} 31... Nb6 {[%clk 0:01:38.8]} 32.
Bf1 {[%clk 0:00:41.2]} 32... Nc5 {[%clk 0:01:38.2]} 33. f3 {[%clk 0:00:41.4]}
33... Ra5 {[%clk 0:01:34.2]} 34. Rc1 {[%clk 0:00:41]} 34... Nbd7 {[%clk
0:01:29.1]} 35. h4 {[%clk 0:00:38.7]} 35... Ne5 {[%clk 0:01:28.4]} 36. Rc3
{[%clk 0:00:37.4]} 36... g5 {[%clk 0:01:27.8]} 37. hxg5 {[%clk 0:00:33.4]} 37...
hxg5 {[%clk 0:01:28.7]} 38. Kf2 {[%clk 0:00:33.7]} 38... Kg7 {[%clk 0:01:28]}
39. Be2 {[%clk 0:00:31.8]} 39... Kf6 {[%clk 0:01:27.9]} 40. Rc1 {[%clk
0:00:29.4]} 40... Ra4 {[%clk 0:01:24.2]} 41. Rc3 {[%clk 0:00:28.6]} 41... g4
{[%clk 0:01:20.5]} 42. Ke3 {[%clk 0:00:23.6]} 42... gxf3 {[%clk 0:01:19.8]} 43.
gxf3 {[%clk 0:00:23.6]} 43... Ng6 {[%clk 0:01:16.3]} 44. Rc4 {[%clk 0:00:18.7]}
44... Ra5 {[%clk 0:01:15]} 45. Rb4 {[%clk 0:00:17.4]} 45... Ne5 {[%clk
0:01:13.5]} 46. f4 {[%clk 0:00:16.5]} 46... Nc6 {[%clk 0:01:13.2]} 47. Rb2
{[%clk 0:00:14]} 47... Ra4 {[%clk 0:01:11.4]} 48. Nc3 {[%clk 0:00:13.8]} 48...
Rxa3 {[%clk 0:01:10.5]} 49. Kd2 {[%clk 0:00:13.2]} 49... Rxc3 {[%clk 0:01:04.7]}
50. Kxc3 {[%clk 0:00:13.1]} 50... Na4+ {[%clk 0:01:05.4]} 51. Kc2 {[%clk
0:00:12]} 51... Nxb2 {[%clk 0:01:05.8]} 52. Kxb2 {[%clk 0:00:12.9]} 52... e5
{[%clk 0:01:06.1]} 53. f5 {[%clk 0:00:10.1]} 53... Kg5 {[%clk 0:01:06.2]} 54.
Kc3 {[%clk 0:00:09.9]} 54... Kf4 {[%clk 0:01:06.1]} 55. Bf1 {[%clk 0:00:08.5]}
55... Nd4 {[%clk 0:01:04.9]} 56. Kd3 {[%clk 0:00:08.6]} 56... d5 {[%clk
0:00:59.5]} 57. exd5 {[%clk 0:00:08.6]} 57... Nxf5 {[%clk 0:01:00]} 58. Kc4
{[%clk 0:00:08.7]} 58... e4 {[%clk 0:00:59.5]} 59. Kc5 {[%clk 0:00:08.3]} 59...
Ke5 {[%clk 0:00:59.9]} 60. Bh3 {[%clk 0:00:08.2]} 60... Nd6 {[%clk 0:01:00]} 61.
Bf1 {[%clk 0:00:07.6]} 61... f5 {[%clk 0:01:00.1]} 62. Ba6 {[%clk 0:00:07.4]}
62... f4 {[%clk 0:01:00.5]} 0-1

[Event "Early-Titled-Tuesday-Blitz-February-20-2024"]
[Site "Chess.com"]
[Date "2024.02.20"]
[Round "3"]
[White "sokidze"]
[Black "DonJuan_34"]
[Result "1-0"]
[WhiteElo "2784"]
[BlackElo "2484"]
[TimeControl "180+1"]
[EndTime "8:29:03 PST"]
[Termination "sokidze won on time"]

1. d4 {[%clk 0:03:00.9]} 1... Nf6 {[%clk 0:02:58.8]} 2. c4 {[%clk 0:03:00.3]}
2... g6 {[%clk 0:02:59.1]} 3. Nc3 {[%clk 0:02:59.7]} 3... Bg7 {[%clk 0:02:59.5]}
4. e4 {[%clk 0:03:00]} 4... O-O {[%clk 0:02:59.8]} 5. h3 {[%clk 0:03:00.4]} 5...
d6 {[%clk 0:02:59.2]} 6. Be3 {[%clk 0:03:00.8]} 6... e5 {[%clk 0:02:51.9]} 7. d5
{[%clk 0:03:00.4]} 7... a5 {[%clk 0:02:50.9]} 8. g4 {[%clk 0:02:57]} 8... Na6
{[%clk 0:02:49.3]} 9. Qd2 {[%clk 0:02:57.1]} 9... c6 {[%clk 0:02:47]} 10. f3
{[%clk 0:02:54.1]} 10... cxd5 {[%clk 0:02:35.5]} 11. cxd5 {[%clk 0:02:54]} 11...
Nd7 {[%clk 0:02:32.5]} 12. Nge2 {[%clk 0:02:25.2]} 12... Ndc5 {[%clk 0:02:31.2]}
13. Ng3 {[%clk 0:02:17.1]} 13... a4 {[%clk 0:02:30.8]} 14. h4 {[%clk 0:02:12.9]}
14... Qa5 {[%clk 0:02:26.4]} 15. h5 {[%clk 0:02:08]} 15... a3 {[%clk 0:01:53.5]}
16. b4 {[%clk 0:01:40.4]} 16... Nxb4 {[%clk 0:01:45.7]} 17. Rb1 {[%clk
0:01:38.8]} 17... Bd7 {[%clk 0:01:33.2]} 18. Bh6 {[%clk 0:00:22]} 18... Nc2+
{[%clk 0:01:11.6]} 19. Qxc2 {[%clk 0:00:11.8]} 19... Bxh6 {[%clk 0:01:11.2]} 20.
hxg6 {[%clk 0:00:10.3]} 20... fxg6 {[%clk 0:00:58.4]} 21. Rxh6 {[%clk
0:00:06.9]} 21... Rxf3 {[%clk 0:00:58.3]} 22. Ne2 {[%clk 0:00:06.9]} 22... Na4
{[%clk 0:00:57.6]} 23. Rh3 {[%clk 0:00:02.9]} 23... Raf8 {[%clk 0:00:56]} 24.
Rxf3 {[%clk 0:00:02.2]} 24... Rxf3 {[%clk 0:00:55.9]} 25. Rb3 {[%clk 0:00:03]}
25... Bxg4 {[%clk 0:00:41.8]} 26. Bg2 {[%clk 0:00:02.7]} 26... Re3 {[%clk
0:00:27]} 27. Qd2 {[%clk 0:00:03.2]} 27... Nxc3 {[%clk 0:00:11.7]} 28. Qxe3
{[%clk 0:00:03.6]} 28... Nxe2+ {[%clk 0:00:10.8]} 29. Qd2 {[%clk 0:00:04.2]}
29... Qc5 {[%clk 0:00:07.9]} 30. Bf3 {[%clk 0:00:04.7]} 30... Bxf3 {[%clk
0:00:05]} 31. Rxf3 {[%clk 0:00:05.6]} 31... Nd4 {[%clk 0:00:05.6]} 32. Rc3
{[%clk 0:00:06.1]} 32... Qb6 {[%clk 0:00:04.2]} 33. Qc1 {[%clk 0:00:03.1]} 33...
Qb4 {[%clk 0:00:03.2]} 34. Kf2 {[%clk 0:00:02.8]} 34... Nb5 {[%clk 0:00:03.3]}
35. Rc8+ {[%clk 0:00:02.9]} 35... Kg7 {[%clk 0:00:02.9]} 36. Qc4 {[%clk
0:00:02.7]} 36... Qd2+ {[%clk 0:00:02.1]} 37. Qe2 {[%clk 0:00:03.3]} 37... Qe3+
{[%clk 0:00:02.5]} 38. Kxe3 {[%clk 0:00:03.4]} 1-0

[Event "Early-Titled-Tuesday-Blitz-February-20-2024"]
[Site "Chess.com"]
[Date "2024.02.20"]
[Round "3"]
[White "Arystanner"]
[Black "Jospem"]
[Result "0-1"]
[WhiteElo "2775"]
[BlackElo "3080"]
[TimeControl "180+1"]
[EndTime "8:29:04 PST"]
[Termination "Jospem won by checkmate"]

1. e4 {[%clk 0:02:55.9]} 1... e5 {[%clk 0:02:59.9]} 2. Nf3 {[%clk 0:02:56.1]}
2... Nc6 {[%clk 0:03:00.4]} 3. Nc3 {[%clk 0:02:56.6]} 3... Nf6 {[%clk
0:02:53.1]} 4. d4 {[%clk 0:02:56.9]} 4... exd4 {[%clk 0:02:53.1]} 5. Nxd4 {[%clk
0:02:57.8]} 5... Bb4 {[%clk 0:02:52.1]} 6. Nxc6 {[%clk 0:02:58.2]} 6... bxc6
{[%clk 0:02:52.7]} 7. Bd3 {[%clk 0:02:58.6]} 7... O-O {[%clk 0:02:52.4]} 8. O-O
{[%clk 0:02:58.9]} 8... Re8 {[%clk 0:02:51.6]} 9. Bg5 {[%clk 0:02:55.2]} 9... h6
{[%clk 0:02:51.5]} 10. Bh4 {[%clk 0:02:55.4]} 10... Be7 {[%clk 0:02:49.8]} 11.
Re1 {[%clk 0:02:39.2]} 11... d6 {[%clk 0:02:46.7]} 12. h3 {[%clk 0:02:33.5]}
12... Nd7 {[%clk 0:02:42.3]} 13. Bg3 {[%clk 0:02:29.7]} 13... Bf6 {[%clk
0:02:38.6]} 14. Rb1 {[%clk 0:02:25.7]} 14... Rb8 {[%clk 0:02:37.5]} 15. Na4
{[%clk 0:02:23.1]} 15... c5 {[%clk 0:02:25.8]} 16. b3 {[%clk 0:02:20.5]} 16...
Bb7 {[%clk 0:02:25.9]} 17. c4 {[%clk 0:02:11.8]} 17... Bd4 {[%clk 0:02:24.6]}
18. Qc2 {[%clk 0:02:05.2]} 18... Qf6 {[%clk 0:02:24.4]} 19. Rbc1 {[%clk
0:02:00.2]} 19... Ne5 {[%clk 0:02:20.1]} 20. Bf1 {[%clk 0:01:59.2]} 20... Ng6
{[%clk 0:02:08.6]} 21. Nc3 {[%clk 0:01:57.4]} 21... a6 {[%clk 0:02:06.6]} 22.
Nd5 {[%clk 0:01:50.6]} 22... Bxd5 {[%clk 0:02:06.5]} 23. exd5 {[%clk 0:01:45]}
23... Nh4 {[%clk 0:02:01]} 24. Bd3 {[%clk 0:01:40.7]} 24... g5 {[%clk
0:01:41.4]} 25. Kh2 {[%clk 0:01:29.3]} 25... Kg7 {[%clk 0:01:32.3]} 26. Re2
{[%clk 0:01:28.1]} 26... Ng6 {[%clk 0:01:17]} 27. Rce1 {[%clk 0:01:18.8]} 27...
Rxe2 {[%clk 0:01:15.7]} 28. Qxe2 {[%clk 0:01:19.5]} 28... a5 {[%clk 0:01:05.6]}
29. Bxg6 {[%clk 0:01:08.1]} 29... Kxg6 {[%clk 0:00:55.2]} 30. Qe4+ {[%clk
0:00:58.3]} 30... Kg7 {[%clk 0:00:50.4]} 31. Qe7 {[%clk 0:00:58.4]} 31... Qxe7
{[%clk 0:00:32.8]} 32. Rxe7 {[%clk 0:00:58.1]} 32... Rc8 {[%clk 0:00:33.7]} 33.
f4 {[%clk 0:00:46]} 33... Kf8 {[%clk 0:00:33.7]} 34. Re2 {[%clk 0:00:40.4]}
34... a4 {[%clk 0:00:34.1]} 35. fxg5 {[%clk 0:00:35.5]} 35... hxg5 {[%clk
0:00:35]} 36. Bf2 {[%clk 0:00:33]} 36... Bf6 {[%clk 0:00:27.3]} 37. Re3 {[%clk
0:00:22.3]} 37... Ra8 {[%clk 0:00:27.2]} 38. Rf3 {[%clk 0:00:22.1]} 38... Bb2
{[%clk 0:00:21.7]} 39. Kg3 {[%clk 0:00:16.9]} 39... Kg7 {[%clk 0:00:21.6]} 40.
Kg4 {[%clk 0:00:17]} 40... Kg6 {[%clk 0:00:21.7]} 41. Be3 {[%clk 0:00:12.4]}
41... f6 {[%clk 0:00:17.4]} 42. Bf2 {[%clk 0:00:11.6]} 42... Be5 {[%clk
0:00:16.9]} 43. Rd3 {[%clk 0:00:08.7]} 43... axb3 {[%clk 0:00:15.8]} 44. axb3
{[%clk 0:00:09.6]} 44... Ra2 {[%clk 0:00:14.6]} 45. Kf3 {[%clk 0:00:09.9]} 45...
Rb2 {[%clk 0:00:14.8]} 46. g4 {[%clk 0:00:10.2]} 46... f5 {[%clk 0:00:14.4]} 47.
gxf5+ {[%clk 0:00:10]} 47... Kxf5 {[%clk 0:00:15.3]} 48. Bg3 {[%clk 0:00:09.7]}
48... Bf4 {[%clk 0:00:14.1]} 49. h4 {[%clk 0:00:08.9]} 49... g4# {[%clk
0:00:10.8]} 0-1

[Event "Early-Titled-Tuesday-Blitz-February-20-2024"]
[Site "Chess.com"]
[Date "2024.02.20"]
[Round "3"]
[White "stratacticos"]
[Black "Raffael89"]
[Result "1-0"]
[WhiteElo "1982"]
[BlackElo "1819"]
[TimeControl "180+1"]
[EndTime "8:29:04 PST"]
[Termination "stratacticos won on time"]

1. e4 {[%clk 0:02:59.3]} 1... c6 {[%clk 0:02:59.2]} 2. d4 {[%clk 0:02:58.2]}
2... d5 {[%clk 0:03:00.1]} 3. e5 {[%clk 0:02:58]} 3... c5 {[%clk 0:03:00.3]} 4.
dxc5 {[%clk 0:02:56.7]} 4... e6 {[%clk 0:03:00.5]} 5. c3 {[%clk 0:02:55]} 5...
Bxc5 {[%clk 0:02:57.7]} 6. b4 {[%clk 0:02:50.9]} 6... Bf8 {[%clk 0:02:46.6]} 7.
Nf3 {[%clk 0:02:43.4]} 7... f6 {[%clk 0:02:45.1]} 8. Bd3 {[%clk 0:02:40.1]} 8...
Nd7 {[%clk 0:02:32]} 9. Bf4 {[%clk 0:02:35.9]} 9... Nh6 {[%clk 0:02:18.7]} 10.
Bxh6 {[%clk 0:02:30.9]} 10... gxh6 {[%clk 0:02:17.7]} 11. exf6 {[%clk
0:02:30.6]} 11... Nxf6 {[%clk 0:02:18.6]} 12. O-O {[%clk 0:02:23.3]} 12... Bd6
{[%clk 0:02:08.4]} 13. Qc1 {[%clk 0:02:14.7]} 13... e5 {[%clk 0:01:37.1]} 14.
Nxe5 {[%clk 0:02:10.8]} 14... Bxe5 {[%clk 0:01:25.7]} 15. Re1 {[%clk 0:02:10.4]}
15... Qc7 {[%clk 0:01:04.2]} 16. f4 {[%clk 0:02:05.2]} 16... Qb6+ {[%clk
0:00:58.9]} 17. Qe3 {[%clk 0:01:47.6]} 17... Qxe3+ {[%clk 0:00:50.5]} 18. Rxe3
{[%clk 0:01:47]} 18... Ng4 {[%clk 0:00:51.4]} 19. Re2 {[%clk 0:01:32.4]} 19...
O-O {[%clk 0:00:51.2]} 20. fxe5 {[%clk 0:01:30.5]} 20... Re8 {[%clk 0:00:50.8]}
21. Nd2 {[%clk 0:01:22.1]} 21... Rxe5 {[%clk 0:00:48.6]} 22. Rae1 {[%clk
0:01:16.2]} 22... Rxe2 {[%clk 0:00:39]} 23. Rxe2 {[%clk 0:01:15.6]} 23... Bd7
{[%clk 0:00:37.2]} 24. Bxh7+ {[%clk 0:01:11.3]} 24... Kxh7 {[%clk 0:00:27.8]}
25. Re7+ {[%clk 0:01:10.4]} 25... Kg6 {[%clk 0:00:24]} 26. Rxd7 {[%clk
0:01:09.7]} 26... Re8 {[%clk 0:00:24.6]} 27. Nf3 {[%clk 0:01:00.3]} 27... Re3
{[%clk 0:00:16.6]} 28. Rxb7 {[%clk 0:00:48.9]} 28... Rxc3 {[%clk 0:00:15.5]} 29.
Kf1 {[%clk 0:00:46.2]} 29... Rc1+ {[%clk 0:00:14.2]} 30. Ke2 {[%clk 0:00:45.4]}
30... Rc2+ {[%clk 0:00:14.7]} 31. Kd3 {[%clk 0:00:45.2]} 31... Rxa2 {[%clk
0:00:14.4]} 32. h3 {[%clk 0:00:41.4]} 32... Nf6 {[%clk 0:00:11.9]} 33. g4 {[%clk
0:00:40.8]} 33... Ra4 {[%clk 0:00:10.1]} 34. Nd4 {[%clk 0:00:32.5]} 34... Ra3+
{[%clk 0:00:08.9]} 35. Kc2 {[%clk 0:00:28.3]} 35... Kg5 {[%clk 0:00:09]} 36. Nb3
{[%clk 0:00:21.1]} 36... Ra2+ {[%clk 0:00:08.7]} 37. Kc3 {[%clk 0:00:20.8]}
37... Rh2 {[%clk 0:00:07.9]} 38. Rxa7 {[%clk 0:00:19.1]} 38... Rxh3+ {[%clk
0:00:08.3]} 39. Kb2 {[%clk 0:00:17.2]} 39... Kxg4 {[%clk 0:00:09.2]} 40. b5
{[%clk 0:00:16.8]} 40... Ne4 {[%clk 0:00:05.8]} 41. b6 {[%clk 0:00:15.9]} 41...
Nd6 {[%clk 0:00:06]} 42. Rd7 {[%clk 0:00:14.8]} 42... Nb5 {[%clk 0:00:02.5]} 43.
b7 {[%clk 0:00:12.2]} 1-0